bitfinex-derivatives/quotes_SOLF0:USTF0_20250110
["timestamp","ask_amount","ask_price","bid_price","bid_amount"]
[1736513264051,2.6075,191.77,191.75,8.36717364]
[1736513265054,8.36717364,191.79,191.73,8.36717364]
[1736513265446,2.6077,191.75,191.73,8.36717364]
[1736513274558,2.6075,191.76,191.73,10.97507364]
[1736513274759,2.6075,191.76,191.75,8.36717364]
[1736513276763,2.6078,191.75,191.73,8.36717364]
[1736513278263,2.6078,191.75,191.72,2.608]
[1736513278461,2.6073,191.78,191.74,8.36717364]
[1736513278662,8.36717364,191.79,191.74,8.36717364]
[1736513279761,2.6076,191.75,191.74,8.36717364]
[1736513281261,8.36717364,191.77,191.64,3.1286]
[1736513281559,8.36717364,191.75,191.69,8.36717364]
[1736513282364,2.6083,191.7,191.69,8.36717364]
[1736513295472,2.6088,191.67,191.58,90.6998]
[1736513295773,8.36717364,191.71,191.65,8.36717364]
[1736513296475,9.95007364,191.71,191.65,8.36717364]
[1736513296876,143.85628277,191.69,191.65,8.36717364]
[1736513297175,2.6089,191.66,191.65,8.36717364]
[1736513299780,143.85628277,191.7,191.65,8.36717364]
[1736513299972,143.85628277,191.7,191.68,8.36717364]
[1736513300168,145.43918277,191.71,191.68,8.36717364]
[1736513300372,2.6085,191.69,191.68,8.36717364]
[1736513300574,153.80635641,191.71,191.66,8.36717364]
[1736513300877,9.95007364,191.71,191.66,8.36717364]
[1736513301079,17.99669463,191.71,191.66,8.36717364]
[1736513301476,2.6088,191.67,191.66,8.36717364]
[1736513301878,161.8529774,191.71,191.6,4.42]
[1736513302179,161.8529774,191.71,191.65,8.36717364]
[1736513302681,161.8529774,191.71,191.6,4.42]
[1736513302871,153.80635641,191.71,191.64,8.36717364]
[1736513303273,2.609,191.66,191.64,8.36717364]
[1736513303776,8.0445536,191.7,191.64,8.36717364]
[1736513303777,2.609,191.65,191.64,8.36717364]
[1736513317896,2.6087,191.68,191.66,2.6088]
[1736513318095,2.6087,191.68,191.67,8.36717364]
[1736513318299,143.85628277,191.69,191.65,8.36717364]
[1736513318502,152.22345641,191.71,191.65,8.36717364]
[1736513319191,2.6087,191.67,191.64,2.609]
[1736513319392,2.6087,191.67,191.65,8.36717364]
[1736513320396,2.6087,191.67,191.65,10.97617364]
[1736513321100,2.6086,191.68,191.65,10.97617364]
[1736513323398,152.22345641,191.71,191.65,10.97617364]
[1736513323601,2.6087,191.67,191.65,10.97617364]
[1736513325197,2.6087,191.67,191.65,8.36717364]
[1736513325402,2.6091,191.65,191.63,8.36717364]
[1736513327098,2.6091,191.65,191.63,10.97637364]
[1736513330102,143.85628277,191.68,191.63,8.36717364]
[1736513330404,2.6088,191.67,191.65,10.97617364]
[1736513330599,143.85628277,191.68,191.65,8.36717364]
[1736513330802,146.46488277,191.68,191.67,8.36717364]
[1736513331306,143.85628277,191.69,191.67,8.36717364]
[1736513331497,143.85628277,191.69,191.67,10.97577364]
[1736513331995,2.6084,191.7,191.68,2.6086]
[1736513332198,2.6084,191.7,191.69,8.36717364]
[1736513332906,146.46448277,191.71,191.69,8.36717364]
[1736513335609,2.6082,191.71,191.69,8.36717364]
[1736513335811,2.6085,191.69,191.68,8.36717364]
[1736513336107,143.85628277,191.73,191.68,8.36717364]
[1736513336313,143.85628277,191.73,191.62,1.5021]
[1736513336314,143.85628277,191.73,191.71,8.36717364]
[1736513336905,327.48073919,191.74,191.71,8.36717364]
[1736513337211,2.6082,191.71,191.69,8.36717364]
[1736513338704,8.36717364,191.72,191.66,8.36717364]
[1736513338911,147.02108277,191.74,191.66,8.36717364]
[1736513339107,15.75943132,191.73,191.66,8.36717364]
[1736513339308,2.6087,191.68,191.66,8.36717364]
[1736513339907,8.36717364,191.7,191.64,8.36717364]
[1736513340106,8.36717364,191.7,191.62,2.6094]
[1736513340309,15.75943132,191.7,191.64,8.36717364]
[1736513340704,15.75943132,191.7,191.6,2.6096]
[1736513340908,15.75943132,191.7,191.62,8.36717364]
[1736513341104,23.82045291,191.7,191.62,8.36717364]
[1736513341310,152.22345641,191.68,191.62,8.36717364]
[1736513341712,2.6088,191.67,191.62,8.36717364]
[1736513341910,143.85628277,191.68,191.62,8.36717364]
[1736513342510,2.6088,191.67,191.64,8.36717364]
[1736513342715,143.85628277,191.68,191.64,8.36717364]
[1736513343021,143.85628277,191.68,191.66,8.36717364]
[1736513343209,146.46488277,191.68,191.66,8.36717364]
[1736513343615,143.85628277,191.68,191.66,8.36717364]
[1736513343815,143.85628277,191.69,191.66,8.36717364]
[1736513345018,8.06187944,191.68,191.66,8.36717364]
[1736513345219,2.6087,191.67,191.66,8.36717364]
[1736513346419,10.67047944,191.68,191.66,8.36717364]
[1736513346716,2.6086,191.68,191.66,8.36717364]
[1736513350216,2.6085,191.69,191.66,10.97597364]
[1736513350419,2.6085,191.69,191.68,8.36717364]
[1736513350817,154.52902869,191.7,191.68,8.36717364]
[1736513351017,143.85628277,191.7,191.68,8.36717364]
[1736513351520,2.6085,191.69,191.68,8.36717364]
[1736513360125,143.85628277,191.71,191.64,2.609]
[1736513360327,143.85628277,191.71,191.6,4.42]
[1736513360525,8.07549071,191.7,191.6,4.42]
[1736513360733,8.07549071,191.7,191.66,8.36717364]
[1736513361327,8.07549071,191.7,191.6,4.42]
[1736513361328,151.93177348,191.7,191.68,8.36717364]
[1736513361518,143.85628277,191.7,191.68,8.36717364]
[1736513362126,2.6085,191.69,191.68,8.36717364]
[1736513363227,10.6843244,191.69,191.68,8.36717364]
[1736513363826,2.6085,191.69,191.68,8.36717364]
[1736513365126,10.6841266,191.69,191.68,8.36717364]
[1736513365625,2.6085,191.69,191.68,8.36717364]
[1736513366332,146.46468277,191.7,191.68,8.36717364]
[1736513367027,143.85628277,191.71,191.68,8.36717364]
[1736513367231,146.46448277,191.71,191.7,8.36717364]
[1736513367725,143.85628277,191.72,191.61,3.1422]
[1736513367927,2.6087,191.68,191.65,2.609]
[1736513368733,2.6088,191.67,191.64,2.6091]
[1736513369133,2.6088,191.67,191.66,8.36717364]
[1736513370328,143.85628277,191.7,191.61,3.1422]
[1736513370636,2.609,191.66,191.63,2.6092]
[1736513374032,2.609,191.66,191.65,8.36717364]
[1736513375935,143.85628277,191.69,191.61,3.1422]
[1736513376138,143.85628277,191.69,191.65,8.36717364]
[1736513376740,152.22345641,191.69,191.6,2.6096]
[1736513376937,7.40549496,191.68,191.62,8.36717364]
[1736513377241,2.6088,191.67,191.62,8.36717364]
[1736513377437,180.45965642,191.67,191.62,8.36717364]
[1736513377836,2.609,191.65,191.64,8.36717364]
[1736513378541,147.69100599,191.65,191.64,8.36717364]
[1736513379139,2.609,191.65,191.64,8.36717364]
[1736513384647,145.08200599,191.67,191.64,8.36717364]
[1736513384842,145.08200599,191.67,191.66,8.36717364]
[1736513385042,42.49300936,191.67,191.66,8.36717364]
[1736513385238,42.49300936,191.67,191.66,10.97607364]
[1736513385847,2.6084,191.7,191.66,10.97607364]
[1736513386144,2.6084,191.7,191.69,8.36717364]
[1736513387753,17.06807294,191.75,191.69,8.36717364]
[1736513387946,2.6083,191.71,191.62,3.1377]
[1736513388250,2.6083,191.71,191.67,2.6086]
[1736513388843,2.6083,191.7,191.62,3.1377]
[1736513389046,2.6083,191.7,191.69,8.36717364]
[1736513389947,17.06807294,191.75,191.62,3.1377]
[1736513390148,2.6089,191.66,191.63,2.6092]
[1736513390347,17.06807294,191.75,191.65,8.36717364]
[1736513390647,2.6082,191.71,191.7,8.36717364]
[1736513396958,17.06807294,191.75,191.66,2.6088]
[1736513397154,2.6085,191.69,191.66,2.6088]
[1736513399057,2.6085,191.69,191.68,8.36717364]
[1736513401458,2.6085,191.69,191.66,2.6088]
[1736513401663,2.6085,191.69,191.68,8.36717364]
[1736513406065,15.46757294,191.75,191.68,8.36717364]
[1736513406272,8.06746232,191.75,191.73,8.36717364]
[1736513406559,284.66620172,191.76,191.73,8.36717364]
[1736513406759,284.66620172,191.76,191.63,1.5448]
[1736513406961,293.03337536,191.76,191.7,8.36717364]
[1736513407265,2.6082,191.71,191.7,8.36717364]
[1736513410466,8.36717364,191.76,191.63,1.5448]
[1736513410666,8.36717364,191.74,191.68,8.36717364]
[1736513410864,4.638,191.73,191.68,8.36717364]
[1736513411469,2.6085,191.69,191.68,8.36717364]
[1736513412970,8.36717364,191.72,191.54,5.20517741]
[1736513413168,8.36717364,191.7,191.64,8.36717364]
[1736513413369,8.36717364,191.7,191.63,8.36717364]
[1736513413570,2.6091,191.64,191.63,8.36717364]
[1736513413969,2.6091,191.64,191.56,63.3844462]
[1736513414166,8.36717364,191.7,191.59,2.6097]
[1736513414167,2.6093,191.63,191.59,2.6097]
[1736513414478,2.6093,191.63,191.62,8.36717364]
[1736513415873,8.36717364,191.7,191.62,8.36717364]
[1736513416073,2.6092,191.64,191.61,2.6095]
[1736513416372,2.6092,191.64,191.56,63.3844462]
[1736513416572,2.6092,191.64,191.6,2.6097]
[1736513416771,2.6093,191.63,191.6,2.6097]
[1736513418772,2.6091,191.65,191.62,10.97657364]
[1736513418974,2.6091,191.65,191.64,8.36717364]
[1736513424374,2.6084,191.7,191.64,8.36717364]
[1736513424576,8.05899655,191.72,191.69,8.36717364]
[1736513424973,8.05899655,191.72,191.71,8.36717364]
[1736513424974,2.6081,191.72,191.71,8.36717364]
[1736513425174,8.05899655,191.74,191.71,8.36717364]
[1736513425373,144.92120922,191.75,191.73,8.36717364]
[1736513425571,2.6078,191.74,191.73,8.36717364]
[1736513425881,3.0530499,191.77,191.71,8.36717364]
[1736513426782,2.6082,191.72,191.71,8.36717364]
[1736513429578,15.47003828,191.76,191.71,8.36717364]
[1736513429782,2.608,191.73,191.71,8.36717364]
[1736513429979,8.06869714,191.76,191.71,8.36717364]
[1736513430184,3.0530499,191.77,191.71,8.36717364]
[1736513430879,2.6081,191.72,191.71,8.36717364]
[1736513431782,11.42022354,191.77,191.65,2.609]
[1736513431979,11.42022354,191.77,191.69,8.36717364]
[1736513432982,2.6083,191.7,191.69,8.36717364]
[1736513434286,13.19437364,191.75,191.67,8.36717364]
[1736513434582,2.6086,191.68,191.67,8.36717364]
[1736513435383,2.6085,191.69,191.67,8.36717364]
[1736513436381,2.6084,191.7,191.67,8.36717364]
[1736513436586,2.6084,191.7,191.69,8.36717364]
[1736513436982,2.608,191.73,191.69,10.97567364]
[1736513437178,2.608,191.73,191.72,8.36717364]
[1736513441287,3.0530499,191.77,191.72,8.36717364]
[1736513441485,3.0530499,191.77,191.74,8.36717364]
[1736513441991,2.6076,191.76,191.74,8.36717364]
[1736513444092,3.0530499,191.77,191.74,8.36717364]
[1736513444293,5.6604499,191.77,191.74,8.36717364]
[1736513445697,2.6074,191.77,191.74,8.36717364]
[1736513446290,8.36717364,191.8,191.74,8.36717364]
[1736513446493,2.6075,191.76,191.74,8.36717364]
[1736513449694,8.36717364,191.82,191.74,8.36717364]
[1736513449898,16.43587078,191.84,191.76,8.36717364]
[1736513450098,2.6072,191.79,191.76,8.36717364]
[1736513450401,16.43587078,191.84,191.78,8.36717364]
[1736513450795,2.6069,191.81,191.78,8.36717364]
[1736513451399,16.43587078,191.84,191.78,8.36717364]
[1736513451599,8.36717364,191.84,191.78,8.36717364]
[1736513452101,2.6071,191.8,191.78,8.36717364]
[1736513452296,8.36717364,191.84,191.78,8.36717364]
[1736513452999,2.6071,191.79,191.78,8.36717364]
[1736513453795,2.607,191.8,191.78,8.36717364]
[1736513456005,2.6069,191.81,191.78,8.36717364]
[1736513456503,13.12737364,191.85,191.78,8.36717364]
[1736513456699,13.12737364,191.85,191.78,10.97427364]
[1736513456700,2.6067,191.82,191.78,10.97427364]
[1736513458701,2.6068,191.81,191.78,10.97427364]
[1736513459403,2.6068,191.81,191.8,8.36717364]
[1736513459702,8.36717364,191.86,191.8,8.36717364]
[1736513461303,2.6067,191.83,191.8,8.36717364]
[1736513461501,8.36717364,191.87,191.8,10.97407364]
[1736513461905,2.6065,191.84,191.82,8.36717364]
[1736513462703,2.6066,191.83,191.82,8.36717364]
[1736513463703,15.81618225,191.89,191.82,8.36717364]
[1736513463907,15.81618225,191.89,191.84,8.36717364]
[1736513464206,2.6063,191.85,191.84,8.36717364]
[1736513464800,2.6067,191.83,191.79,2.6071]
[1736513465006,2.6067,191.83,191.82,8.36717364]
[1736513468204,2.6064,191.84,191.82,8.36717364]
[1736513468509,8.06869714,191.91,191.82,8.36717364]
[1736513468808,8.36717364,191.92,191.86,8.36717364]
[1736513469004,16.40773373,191.92,191.86,8.36717364]
[1736513469210,8.04056009,191.92,191.88,8.36717364]
[1736513469608,8.36717364,191.94,191.88,8.36717364]
[1736513470706,8.36717364,191.93,191.88,8.36717364]
[1736513471410,2.6057,191.89,191.88,8.36717364]
[1736513472110,2.6063,191.85,191.81,2.6067]
[1736513472417,8.36717364,191.89,191.77,4.42]
[1736513472910,8.36717364,191.89,191.82,8.36717364]
[1736513474109,2.6066,191.83,191.82,8.36717364]
[1736513474614,15.41401094,191.93,191.82,8.36717364]
[1736513474813,2.6065,191.84,191.82,8.36717364]
[1736513475108,8.36717364,191.89,191.82,8.36717364]
[1736513475414,2.6066,191.83,191.82,8.36717364]
[1736513477917,4.42,191.9,191.82,8.36717364]
[1736513478115,12.78717364,191.9,191.84,8.36717364]
[1736513479212,2.6063,191.85,191.84,8.36717364]
[1736513480116,2.6066,191.83,191.82,8.36717364]
[1736513481922,8.36717364,191.84,191.73,4.42]
[1736513482120,8.36717364,191.84,191.78,8.36717364]
[1736513482319,2.6067,191.83,191.78,8.36717364]
[1736513482521,8.36717364,191.84,191.78,8.36717364]
[1736513483017,2.6071,191.8,191.78,8.36717364]
[1736513485526,25.40127057,191.88,191.78,8.36717364]
[1736513485727,25.40127057,191.88,191.82,8.36717364]
[1736513485921,25.40127057,191.88,191.7,9.1882]
[1736513485922,8.03873984,191.88,191.84,8.36717364]
[1736513486118,8.03873984,191.88,191.86,8.36717364]
[1736513486323,144.92120922,191.89,191.86,8.36717364]
[1736513486524,149.36120922,191.92,191.86,8.36717364]
[1736513486829,15.44555027,191.91,191.86,8.36717364]
[1736513487625,8.05530303,191.91,191.86,8.36717364]
[1736513488228,2.606,191.88,191.86,8.36717364]
[1736513488433,8.36717364,191.91,191.85,8.36717364]
[1736513490234,23.81272391,191.93,191.87,8.36717364]
[1736513490530,15.44555027,191.93,191.89,8.36717364]
[1736513490932,2.6056,191.91,191.89,8.36717364]
[1736513491328,10.66050303,191.93,191.89,10.97287364]
[1736513491529,10.66050303,191.93,191.91,8.36717364]
[1736513491924,2.6052,191.93,191.91,8.36717364]
[1736513497628,23.81232462,191.98,191.91,8.36717364]
[1736513497834,23.81232462,191.98,191.93,8.36717364]
[1736513497835,7.38984795,191.97,191.93,8.36717364]
[1736513498230,2.6051,191.95,191.93,8.36717364]
[1736513498829,2.6051,191.94,191.93,8.36717364]
[1736513503738,15.44515098,191.99,191.93,8.36717364]
[1736513503931,12.91357364,192.0,191.93,8.36717364]
[1736513504134,20.30342159,192.0,191.93,8.36717364]
[1736513505140,2.6049,191.95,191.93,8.36717364]
[1736513507846,2.6048,191.96,191.93,8.36717364]
[1736513508744,2.605,191.95,191.93,8.36717364]
[1736513509147,15.44515098,191.99,191.93,8.36717364]
[1736513509448,2.6049,191.96,191.93,8.36717364]
[1736513510249,2.6049,191.95,191.93,8.36717364]
[1736513511047,2.6051,191.94,191.93,8.36717364]
[1736513512539,2.6053,191.93,191.91,8.36717364]
[1736513514446,2.6048,191.96,191.91,8.36717364]
[1736513514653,8.36717364,191.98,191.93,8.36717364]
[1736513516545,2.605,191.95,191.93,8.36717364]
[1736513519545,15.44515098,191.99,191.93,8.36717364]
[1736513519746,8.05530303,191.99,191.95,8.36717364]
[1736513520254,2.6047,191.97,191.95,8.36717364]
[1736513522454,2.6048,191.96,191.95,8.36717364]
[1736513525359,19.99155098,192.0,191.92,2.6053]
[1736513525659,2.605,191.95,191.92,2.6053]
[1736513525853,19.99155098,192.0,191.92,2.6053]
[1736513526256,2.6046,191.98,191.92,2.6053]
[1736513526455,28.75822419,192.0,191.92,2.6053]
[1736513526652,21.36837624,192.0,191.92,2.6053]
[1736513527153,2.605,191.95,191.92,2.6053]
[1736513527346,19.98366707,192.0,191.92,2.6053]
[1736513527551,2.6048,191.96,191.95,8.36717364]
[1736513528847,2.6046,191.98,191.95,8.36717364]
[1736513529049,2.6046,191.98,191.97,8.36717364]
[1736513534764,8.36717364,192.03,191.93,2.6051]
[1736513534966,2.6052,191.94,191.93,8.36717364]
[1736513535354,2.6054,191.92,191.88,58.45112862]
[1736513535770,8.36717364,191.97,191.9,8.36717364]
[1736513536858,2.6055,191.91,191.9,8.36717364]
[1736513538371,2.6056,191.9,191.89,8.36717364]
[1736513541173,8.36717364,191.95,191.87,8.36717364]
[1736513541471,2.6059,191.88,191.87,8.36717364]
[1736513542070,2.6054,191.92,191.87,8.36717364]
[1736513542272,8.36717364,191.93,191.87,8.36717364]
[1736513542664,2.6059,191.88,191.87,8.36717364]
[1736513543373,2.606,191.87,191.85,13.44053099]
[1736513543672,8.36717364,191.93,191.85,13.44053099]
[1736513544574,2.6061,191.87,191.85,13.44053099]
[1736513546964,2.6061,191.86,191.85,13.44053099]
[1736513558883,8.36717364,191.89,191.77,4.42]
[1736513559081,2.6065,191.84,191.83,8.36717364]
[1736513559782,2.6063,191.85,191.83,8.36717364]
[1736513561171,2.6063,191.85,191.83,10.97377364]
[1736513563884,8.36717364,191.91,191.83,8.36717364]
[1736513564084,1.5094,191.92,191.77,4.42]
[1736513564085,8.36717364,191.89,191.77,4.42]
[1736513564280,8.36717364,191.89,191.83,8.36717364]
[1736513564487,2.6067,191.82,191.79,2.607]
[1736513564690,2.6067,191.82,191.81,8.36717364]
[1736513565883,2.6067,191.82,191.79,2.607]
[1736513566086,2.6068,191.81,191.8,8.36717364]
[1736513568090,2.607,191.8,191.77,2.6073]
[1736513568394,2.607,191.8,191.78,8.36717364]
[1736513569083,2.607,191.8,191.78,10.97437364]
[1736513569492,2.6068,191.81,191.78,10.97437364]
[1736513569786,11.36747364,191.87,191.8,10.97407364]
[1736513570184,2.6066,191.83,191.8,10.97407364]
[1736513573300,2.6069,191.81,191.8,8.36717364]
[1736513574490,2.6067,191.82,191.8,8.36717364]
[1736513580589,2.6066,191.83,191.8,8.36717364]
[1736513580994,19.42277667,191.87,191.8,8.36717364]
[1736513581502,11.36747364,191.87,191.8,8.36717364]
[1736513583096,2.6067,191.83,191.8,8.36717364]
[1736513584307,2.6068,191.82,191.8,8.36717364]
[1736513586906,2.6073,191.78,191.65,21.74535869]
[1736513587102,2.6073,191.78,191.76,8.36717364]
[1736513591011,2.6067,191.82,191.79,2.6071]
[1736513591207,2.6067,191.82,191.81,8.36717364]
[1736513591410,18.45622034,191.87,191.81,8.36717364]
[1736513591711,2.6065,191.84,191.81,8.36717364]
[1736513592914,3.0003,191.87,191.81,8.36717364]
[1736513593217,2.6066,191.83,191.81,8.36717364]
[1736513599416,2.6067,191.82,191.79,2.6071]
[1736513599615,2.6067,191.82,191.81,8.36717364]
[1736513601618,18.45675584,191.87,191.81,8.36717364]
[1736513601817,2.6066,191.83,191.81,8.36717364]
[1736513603013,18.45675584,191.87,191.81,8.36717364]
[1736513603215,2.6067,191.82,191.81,8.36717364]
[1736513603413,3.0003,191.87,191.81,8.36717364]
[1736513603615,11.05560303,191.87,191.81,8.36717364]
[1736513603816,3.0003,191.87,191.81,8.36717364]
[1736513604319,2.6067,191.83,191.81,8.36717364]
[1736513605124,18.45675584,191.87,191.81,8.36717364]
[1736513605420,2.6067,191.82,191.79,2.6071]
[1736513605620,2.6067,191.82,191.81,8.36717364]
[1736513613625,2.6065,191.84,191.81,8.36717364]
[1736513613833,8.05530303,191.87,191.83,8.36717364]
[1736513614131,2.6063,191.86,191.83,8.36717364]
[1736513614529,16.42247667,191.89,191.83,8.36717364]
[1736513614825,2.6064,191.84,191.83,8.36717364]
[1736513619331,8.36717364,191.89,191.83,8.36717364]
[1736513619530,2.6062,191.86,191.83,10.97367364]
[1736513621629,2.6063,191.85,191.83,10.97367364]
[1736513629239,2.6063,191.85,191.83,2.6065]
[1736513629534,8.36717364,191.88,191.83,8.36717364]
[1736513629736,8.36717364,191.88,191.76,4.6352]
[1736513629932,8.36717364,191.88,191.81,8.36717364]
[1736513630131,2.6067,191.82,191.81,8.36717364]
[1736513644851,2.6065,191.84,191.81,8.36717364]
[1736513646353,2.6065,191.84,191.82,2.6066]
[1736513646955,8.36717364,191.88,191.76,4.6352]
[1736513647253,8.36717364,191.88,191.8,8.36717364]
[1736513647755,2.6067,191.83,191.8,10.97407364]
[1736513649054,2.6067,191.82,191.8,10.97407364]
[1736513650357,2.6066,191.83,191.8,10.97407364]
[1736513652458,8.36717364,191.86,191.8,2.6069]
[1736513652660,2.6067,191.82,191.8,10.97407364]
[1736513653157,8.36717364,191.88,191.8,8.36717364]
[1736513653661,8.36717364,191.88,191.82,2.6067]
[1736513653662,2.6064,191.85,191.82,2.6067]
[1736513657659,2.6064,191.85,191.82,10.97387364]
[1736513660968,2.6062,191.86,191.83,2.6065]
[1736513661261,15.45645584,191.9,191.82,8.36717364]
[1736513661466,23.82362948,191.9,191.82,8.36717364]
[1736513661764,2.6061,191.87,191.84,8.36717364]
[1736513662656,16.42247667,191.9,191.84,8.36717364]
[1736513662857,2.6062,191.86,191.84,8.36717364]
[1736513664170,2.6058,191.89,191.84,8.36717364]
[1736513664467,15.45645584,191.91,191.86,8.36717364]
[1736513664766,2.606,191.87,191.83,8.36717364]
[1736513665660,2.6062,191.86,191.83,10.97367364]
[1736513672569,8.36717364,191.89,191.76,204.8383273]
[1736513672768,8.36717364,191.85,191.79,8.36717364]
[1736513673369,2.6067,191.83,191.79,10.97417364]
[1736513673772,2.6067,191.83,191.79,2.607]
[1736513673967,8.36717364,191.85,191.76,263.55290996]
[1736513674173,8.36717364,191.85,191.78,2.6072]
[1736513674474,8.36717364,191.85,191.78,10.97437364]
[1736513674673,2.6069,191.81,191.78,10.97437364]
[1736513675275,2.6069,191.81,191.79,2.6071]
[1736513675788,2.6067,191.82,191.79,2.6071]
[1736513677579,2.6067,191.82,191.8,8.36717364]
[1736513677879,2.6067,191.82,191.8,10.97407364]
[1736513678677,2.6065,191.84,191.82,2.6067]
[1736513678878,2.6065,191.84,191.82,10.97387364]
[1736513681181,8.36717364,191.88,191.82,10.97387364]
[1736513681372,2.6063,191.85,191.82,10.97387364]
[1736513682978,8.36717364,191.88,191.82,8.36717364]
[1736513683181,2.6062,191.86,191.83,2.6065]
[1736513683979,2.6062,191.86,191.84,8.36717364]
[1736513684177,8.36717364,191.9,191.84,10.97347364]
[1736513685786,2.6061,191.87,191.84,10.97347364]
[1736513688486,2.6062,191.86,191.84,10.97347364]
[1736513689078,2.6062,191.86,191.84,8.36717364]
[1736513700397,2.6062,191.86,191.85,8.36717364]
[1736513703599,2.606,191.88,191.85,8.36717364]
[1736513703898,2.606,191.88,191.87,8.36717364]
[1736513706902,15.45645584,191.92,191.87,8.36717364]
[1736513707203,2.6058,191.89,191.87,8.36717364]
[1736513707402,10.49856299,191.94,191.87,8.36717364]
[1736513707602,2.6052,191.93,191.92,8.36717364]
[1736513709605,2.6051,191.94,191.92,8.36717364]
[1736513712306,2.6052,191.93,191.92,8.36717364]
[1736513712808,2.6051,191.94,191.92,8.36717364]
[1736513714912,2.6052,191.93,191.89,2.6057]
[1736513715108,8.36717364,191.93,191.79,332.99611832]
[1736513715308,8.36717364,191.93,191.86,8.36717364]
[1736513715811,2.6058,191.89,191.86,8.36717364]
[1736513716015,8.36717364,191.93,191.86,8.36717364]
[1736513716519,2.6057,191.9,191.86,10.97317364]
[1736513717710,8.36717364,191.93,191.86,10.97317364]
[1736513718013,2.6058,191.89,191.86,10.97317364]
[1736513719417,2.6058,191.89,191.86,8.36717364]
[1736513719616,2.6056,191.9,191.88,8.36717364]
[1736513720712,3.1971,191.96,191.89,2.6057]
[1736513720918,11.56427364,191.96,191.9,8.36717364]
[1736513723118,2.6054,191.92,191.9,8.36717364]
[1736513724520,11.56427364,191.96,191.9,8.36717364]
[1736513724722,2.6055,191.91,191.9,8.36717364]
[1736513730134,8.05530303,191.97,191.91,2.6055]
[1736513730334,8.36717364,191.98,191.92,8.36717364]
[1736513733034,25.45240009,192.0,191.92,8.36717364]
[1736513733334,2.6051,191.94,191.92,8.36717364]
[1736513734629,15.44362645,192.0,191.92,8.36717364]
[1736513734828,8.05530303,192.0,191.95,8.36717364]
[1736513735435,2.6047,191.97,191.95,8.36717364]
[1736513743641,3.0859,192.02,191.95,8.36717364]
[1736513743842,2.6045,191.99,191.97,8.36717364]
[1736513744338,11.45307364,192.02,191.95,10.97207364]
[1736513744542,11.45307364,192.02,191.95,8.36717364]
[1736513746041,8.36717364,192.0,191.88,4.42]
[1736513746247,8.36717364,192.0,191.92,8.36717364]
[1736513746445,2.6051,191.94,191.92,8.36717364]
[1736513746840,2.6051,191.94,191.91,2.6054]
[1736513746841,8.36717364,191.98,191.91,8.36717364]
[1736513747343,2.6048,191.96,191.91,8.36717364]
[1736513747540,8.36717364,191.98,191.91,8.36717364]
[1736513747940,2.605,191.95,191.91,10.97247364]
[1736513748645,2.6051,191.94,191.91,10.97247364]
[1736513749042,8.36717364,191.98,191.93,8.36717364]
[1736513749246,15.75139194,192.0,191.93,8.36717364]
[1736513749550,8.36717364,192.0,191.93,8.36717364]
[1736513750241,2.6048,191.96,191.93,10.97227364]
[1736513750544,8.36717364,192.0,191.93,8.36717364]
[1736513750746,2.6049,191.96,191.93,8.36717364]
[1736513752345,8.36717364,192.0,191.93,8.36717364]
[1736513752546,2.6051,191.94,191.93,8.36717364]
[1736513753945,2.6051,191.94,191.91,8.36717364]
[1736513755251,2.6052,191.93,191.91,8.36717364]
[1736513758049,8.36717364,191.96,191.85,4.7725]
[1736513758252,8.36717364,191.94,191.87,8.36717364]
[1736513758750,2.6058,191.89,191.87,8.36717364]
[1736513759251,2.6058,191.89,191.87,10.97317364]
[1736513759450,2.6057,191.9,191.87,10.97317364]
[1736513759846,2.6057,191.9,191.89,8.36717364]
[1736513764449,2.6052,191.93,191.89,8.36717364]
[1736513764753,1.6167,191.97,191.91,8.36717364]
[1736513765854,2.6052,191.94,191.91,10.97257364]
[1736513769556,2.6052,191.93,191.91,10.97257364]
[1736513773560,8.36717364,191.98,191.91,10.97257364]
[1736513773859,2.6051,191.94,191.91,10.97257364]
[1736513774059,2.6051,191.94,191.93,8.36717364]
[1736513774361,2.6047,191.97,191.94,2.605]
[1736513774562,15.4546048,192.01,191.95,8.36717364]
[1736513774761,2.6047,191.97,191.95,10.97207364]
[1736513775061,2.6047,191.97,191.95,8.36717364]
[1736513777268,8.36717364,192.0,191.88,4.42]
[1736513777458,8.36717364,192.0,191.93,8.36717364]
[1736513778055,8.36717364,191.98,191.91,8.36717364]
[1736513779064,8.36717364,191.98,191.91,10.97257364]
[1736513779859,2.605,191.95,191.91,10.97257364]
[1736513781159,8.36717364,191.98,191.91,10.97257364]
[1736513781160,2.6051,191.94,191.91,10.97257364]